bitfinex/quotes_SOLUSD_20240712
["timestamp","ask_amount","ask_price","bid_price","bid_amount"]
[1720785796718,41.527,136.08,136.06,7.3495]
[1720785797010,21.527,136.08,136.06,7.3495]
[1720785797218,21.527,136.08,136.05,7.35]
[1720785798795,28.876,136.08,136.03,7.3511]
[1720785799116,28.876,136.08,136.04,7.3504]
[1720785799291,21.527,136.08,136.04,7.3504]
[1720785799797,21.527,136.08,136.05,7.3499]
[1720785799996,15.3218,136.08,136.05,7.3499]
[1720785800712,15.3218,136.08,136.05,7.3501]
[1720785800915,22.6704,136.08,135.99,29.09]
[1720785801209,15.3218,136.08,136.0,20.0]
[1720785801414,15.3218,136.08,136.02,7.3513]
[1720785801415,7.3494,136.07,136.02,7.3513]
[1720785801616,7.3494,136.07,136.03,7.3512]
[1720785802711,15.3218,136.08,136.03,7.3512]
[1720785802909,7.35,136.06,136.02,7.3516]
[1720785803215,6.519,136.07,136.04,7.3506]
[1720785803992,6.519,136.07,136.03,7.351]
[1720785804622,14.56,136.06,136.04,7.3507]
[1720785807014,22.6706,136.08,135.96,7.66681994]
[1720785807015,15.3218,136.08,135.96,7.66681994]
[1720785807233,29.8818,136.08,136.03,14.56]
[1720785807798,29.8818,136.08,136.06,7.3496]
[1720785808017,29.8818,136.08,136.05,7.3499]
[1720785809227,14.56,136.07,136.04,7.3505]
[1720785809725,14.56,136.06,136.03,7.3511]
[1720785809897,14.56,136.06,136.01,14.56]
[1720785810097,14.56,136.06,136.04,7.3505]
[1720785810298,14.56,136.07,136.04,7.3505]
[1720785810511,14.56,136.06,136.04,7.3505]
[1720785810725,14.56,136.05,136.03,7.3511]
[1720785810925,14.56,136.06,136.03,7.3511]
[1720785812513,14.56,136.05,136.01,7.3519]
[1720785812716,14.56,136.03,136.01,7.3521]
[1720785813025,14.56,136.03,136.0,7.3527]
[1720785813327,14.56,136.02,136.0,7.3527]
[1720785813507,14.56,136.02,135.99,7.3532]
[1720785813712,14.56,136.01,135.98,7.3538]
[1720785814222,16.5699,136.03,135.96,14.56]
[1720785814404,14.56,136.0,135.95,14.56]
[1720785814599,23.9217,136.03,135.94,7.66916755]
[1720785815199,23.9217,136.03,135.98,7.3539]
[1720785815413,7.3519,136.02,135.98,7.3539]
[1720785817415,16.5699,136.03,135.99,7.3533]
[1720785817820,23.9212,136.03,135.99,7.3533]
[1720785818518,7.352,136.02,135.98,7.3538]
[1720785818730,7.352,136.02,135.94,7.66916755]
[1720785818905,7.352,136.02,135.97,7.3541]
[1720785820011,16.5699,136.03,135.96,7.355]
[1720785820012,7.3529,136.01,135.96,7.355]
[1720785820224,7.353,136.0,135.96,7.355]
[1720785820911,7.353,136.0,135.95,7.3554]
[1720785821439,36.5026,136.01,135.96,7.3551]
[1720785821737,7.3526,136.01,135.96,7.3551]
[1720785822237,7.352,136.02,135.91,6.625]
[1720785822440,7.352,136.02,135.92,20.0]
[1720785822735,7.3525,136.01,135.96,7.3549]
[1720785822913,45.7199,136.03,135.96,7.3549]
[1720785823233,7.3524,136.01,135.96,7.3549]
[1720785823721,45.7199,136.03,135.92,20.0]
[1720785823722,23.9214,136.03,135.92,20.0]
[1720785823922,27.3518,136.02,135.98,7.3538]
[1720785824335,7.3525,136.01,135.93,45.0]
[1720785824545,15.6808,135.99,135.92,20.0]
[1720785824914,15.6808,135.99,135.96,7.3547]
[1720785825114,15.6808,135.99,135.92,20.0]
[1720785826626,15.6808,135.99,135.97,7.3545]
[1720785828121,15.6808,135.99,135.98,7.354]
[1720785831240,16.653,136.02,135.92,20.0]
[1720785831423,16.653,136.02,136.01,7.3524]
[1720785837235,14.56,136.04,136.02,7.3516]
[1720785837434,14.56,136.04,136.01,7.3522]
[1720785840951,14.56,136.04,136.02,7.3517]
[1720785841627,15.1155,136.06,136.05,7.3502]
[1720785841954,15.1017,136.09,136.05,7.3502]
[1720785842154,29.6617,136.09,136.06,7.3495]
[1720785842326,15.1017,136.09,136.06,7.3495]
[1720785842524,29.6617,136.09,136.06,7.3495]
[1720785842933,15.1017,136.09,136.06,7.3495]
[1720785844357,29.6617,136.09,136.06,7.3495]
[1720785844648,15.1017,136.09,136.06,7.3495]
[1720785849547,15.1017,136.09,136.01,6.1975]
[1720785849744,15.1017,136.09,136.02,65.0]
[1720785850048,15.1017,136.09,136.07,7.3488]
[1720785850251,15.1017,136.09,136.06,7.3494]
[1720785850436,15.1017,136.09,136.02,20.0]
[1720785850636,15.1017,136.09,136.06,7.3496]
[1720785851942,15.1017,136.09,136.07,7.349]
[1720785852947,15.1017,136.09,136.08,7.3486]
[1720785854660,15.1017,136.09,136.07,7.3489]
[1720785856160,15.1017,136.09,136.06,7.3493]
[1720785857041,15.1017,136.09,136.07,7.349]
[1720785857858,15.1017,136.09,135.98,6.3623]
[1720785857859,10.0,136.08,135.98,6.3623]
[1720785858039,10.0,136.08,136.0,7.3525]
[1720785858040,7.3505,136.05,136.0,7.3525]
[1720785858245,7.3509,136.04,135.99,7.3532]
[1720785858455,72.3509,136.04,135.99,7.3532]
[1720785859160,7.3513,136.03,135.99,7.3532]
[1720785859544,30.0,136.02,135.99,7.3532]
[1720785860766,30.0,136.02,135.94,6.3623]
[1720785860964,16.1629,136.01,135.97,7.3543]
[1720785861347,23.5153,136.01,135.91,29.11]
[1720785861548,22.5453,136.01,135.97,7.3541]
[1720785861948,22.5453,136.01,135.97,7.3545]
[1720785862156,22.5453,136.01,135.99,7.3531]
[1720785862684,16.1629,136.01,135.99,7.3531]
[1720785863249,16.1629,136.01,135.98,7.3538]
[1720785864352,16.1629,136.01,135.99,7.3532]
[1720785865168,30.7329,136.01,135.98,7.3539]
[1720785865373,24.57,135.99,135.89,7.68297971]
[1720785865579,22.8466,136.0,135.9,7.3579]
[1720785865580,14.57,135.93,135.9,7.3579]
[1720785865749,14.57,135.93,135.83,6.3017]
[1720785865750,14.57,135.92,135.83,6.3017]
[1720785865952,31.1359,135.92,135.83,6.3017]
[1720785866179,14.57,135.9,135.87,7.3596]
[1720785866381,14.57,135.9,135.86,7.3603]
[1720785866954,14.57,135.89,135.86,7.3603]
[1720785867272,14.57,135.87,135.8,6.0021]
[1720785867456,14.57,135.86,135.83,7.3616]
[1720785867652,14.57,135.86,135.81,14.57]
[1720785867874,7.3587,135.9,135.85,7.361]
[1720785868050,14.57,135.88,135.85,7.361]
[1720785868251,14.57,135.87,135.83,7.3619]
[1720785868652,7.3595,135.88,135.83,7.3619]
[1720785870878,7.3601,135.87,135.82,7.3625]
[1720785871655,7.3601,135.87,135.83,7.3621]
[1720785871873,15.9486,135.86,135.76,6.2813]
[1720785872055,7.3612,135.85,135.8,7.3633]
[1720785872260,15.9486,135.86,135.82,7.3625]
[1720785872756,23.3092,135.86,135.81,7.363]
[1720785874689,7.3612,135.85,135.8,7.3635]
[1720785876092,7.3612,135.85,135.81,7.3631]
[1720785876299,23.3093,135.86,135.81,7.3631]
[1720785877580,15.9486,135.86,135.82,7.3626]
[1720785877874,15.9486,135.86,135.76,29.2]
[1720785878198,15.9486,135.86,135.84,7.3613]
[1720785880394,15.9486,135.86,135.77,65.0]
[1720785880601,23.3138,135.89,135.85,7.361]
[1720785880811,15.9548,135.89,135.86,7.3603]
[1720785881599,15.9548,135.89,135.81,1.47208499]
[1720785881796,15.9548,135.89,135.81,21.47208499]
[1720785882299,15.9548,135.89,135.86,7.3601]
[1720785885175,15.9548,135.89,135.85,7.3608]
[1720785885382,23.3141,135.89,135.84,7.3612]
[1720785886190,23.3141,135.89,135.85,7.3608]
[1720785886390,15.9548,135.89,135.85,7.3608]
[1720785886902,15.9548,135.89,135.86,7.3604]
[1720785887097,23.3137,135.89,135.85,7.3608]
[1720785887397,15.9548,135.89,135.8,6.4371]
[1720785887600,15.9548,135.89,135.81,45.0]
[1720785887977,15.9548,135.89,135.85,7.3608]
[1720785888391,15.9548,135.89,135.86,7.3602]
[1720785889474,15.9548,135.89,135.85,7.3608]
[1720785889975,15.9548,135.89,135.86,7.3605]
[1720785890202,15.9548,135.89,135.87,7.3599]
[1720785891491,15.9548,135.89,135.86,7.3602]
[1720785892180,15.9548,135.89,135.85,7.3608]
[1720785893002,15.9548,135.89,135.86,7.3603]
[1720785894787,30.5548,135.89,135.86,7.3603]
[1720785895293,30.5548,135.89,135.87,7.3599]
[1720785895906,30.5548,135.89,135.86,7.3602]
[1720785898099,15.9548,135.89,135.86,7.3602]
[1720785898293,30.5548,135.89,135.86,7.3602]
[1720785899510,7.3594,135.88,135.83,7.3617]
[1720785899692,14.6,135.85,135.83,7.3619]
[1720785899892,23.3138,135.89,135.84,7.3614]
[1720785900213,14.6,135.87,135.84,7.3614]
[1720785900386,14.6,135.87,135.83,7.3619]
[1720785900586,7.3596,135.88,135.83,7.3619]
[1720785901431,15.9548,135.89,135.85,7.3608]
[1720785902307,15.9548,135.89,135.8,1.07992695]
[1720785902308,15.9548,135.89,135.86,7.36]
[1720785902507,6.5021,135.92,135.87,1.07937057]
[1720785902736,16.4525,135.93,135.9,7.3583]
[1720785903006,16.4525,135.93,135.91,7.3577]
[1720785903218,16.4525,135.93,135.85,29.21]
[1720785903516,16.4525,135.93,135.86,66.0792122]
[1720785903693,16.4525,135.93,135.86,65.0]
[1720785903895,23.8094,135.93,135.86,21.08187637]
[1720785904207,23.8094,135.93,135.88,7.3589]
[1720785904584,23.8094,135.93,135.89,7.3588]
[1720785904988,16.4525,135.93,135.83,6.118]
[1720785905241,16.4525,135.93,135.78,274.1]
[1720785905242,7.3576,135.92,135.87,7.3596]
[1720785905514,7.3579,135.91,135.86,7.3603]
[1720785905818,7.3574,135.92,135.87,7.3599]
[1720785906514,20.0,135.91,135.8,29.21]
[1720785906714,27.3582,135.91,135.87,7.3599]
[1720785907022,20.0,135.91,135.8,29.21]
[1720785907190,20.0,135.92,135.88,7.3592]
[1720785907389,20.0,135.92,135.89,7.3588]
[1720785907589,23.8092,135.93,135.89,7.3588]
[1720785907784,23.8092,135.93,135.8,29.21]
[1720785907785,23.8092,135.93,135.88,7.3592]
[1720785908215,16.4525,135.93,135.89,7.3588]
[1720785908618,16.4525,135.93,135.9,7.3582]
[1720785909399,16.4525,135.93,135.91,7.3576]
[1720785910322,16.4525,135.93,135.92,7.3572]
[1720785911804,16.4525,135.93,135.91,7.3575]
[1720785912808,16.4525,135.93,135.89,7.3586]
[1720785913009,16.4525,135.93,135.8,53.33543606]
[1720785913010,7.3577,135.92,135.87,7.3595]
[1720785913598,7.3577,135.92,135.88,7.3594]
[1720785915017,23.8094,135.93,135.88,7.3594]
[1720785917037,7.3574,135.92,135.87,7.3597]
[1720785917805,7.3582,135.91,135.82,6.6026]
[1720785918000,7.3574,135.92,135.82,6.6026]
[1720785918201,7.3574,135.92,135.88,7.3593]
[1720785918602,7.3574,135.92,135.87,7.3598]
[1720785919301,7.3574,135.92,135.82,6.6026]
[1720785919302,7.358,135.91,135.86,7.36]
[1720785919705,7.3585,135.9,135.86,7.36]
[1720785920007,7.3581,135.91,135.86,7.36]
[1720785921027,7.3581,135.91,135.87,7.3599]
[1720785921234,7.3574,135.92,135.87,7.3599]
[1720785924040,7.3574,135.92,135.88,7.3594]
[1720785924932,23.8094,135.93,135.88,7.3594]
[1720785925114,20.0,135.92,135.88,7.3594]
[1720785927842,16.2027,135.97,135.89,1.47121506]
[1720785928133,16.2027,135.97,135.9,1.47137417]
[1720785928629,16.2027,135.97,135.9,30.68137417]
[1720785928948,16.2027,135.97,135.94,7.3557]
[1720785929634,16.2027,135.97,135.93,7.3565]
[1720785929935,16.2027,135.97,135.94,7.356]
[1720785930233,16.2027,135.97,135.95,7.3556]
[1720785930646,16.2027,135.97,135.96,7.3551]
[1720785930821,16.3095,136.01,135.91,6.0218]
[1720785931139,16.3095,136.01,135.97,7.3544]
[1720785931512,16.3095,136.01,135.96,7.3549]
[1720785931739,23.662,136.01,135.96,7.3549]
[1720785931932,7.353,136.0,135.95,7.3556]
[1720785932330,16.3095,136.01,135.96,7.355]
[1720785932838,23.6619,136.01,135.96,7.3549]
[1720785933233,16.3095,136.01,135.97,7.3545]
[1720785933633,16.3095,136.01,135.98,7.3538]
[1720785933945,16.3095,136.01,135.99,7.3534]
[1720785934438,15.8457,136.05,135.93,29.21]
[1720785934736,15.8457,136.05,135.95,29.21]
[1720785934938,23.1959,136.05,136.0,7.3527]
[1720785935616,15.8457,136.05,136.01,7.3523]
[1720785936716,15.8457,136.05,136.02,7.3516]
[1720785937618,15.8457,136.05,136.01,7.3522]
[1720785940939,15.8457,136.05,135.98,0.57174532]
[1720785940940,15.8457,136.05,136.03,7.3511]
[1720785941429,15.8457,136.05,136.02,7.3516]
[1720785942226,15.8457,136.05,136.03,7.3511]
[1720785942766,15.8457,136.05,136.04,7.3507]
[1720785943445,15.8457,136.05,136.03,7.3511]
[1720785944644,15.8457,136.05,135.99,29.21]
[1720785944845,27.3511,136.04,135.99,7.3531]
[1720785945224,7.3514,136.03,135.98,7.3538]
[1720785945431,13.628,136.03,135.98,7.3538]
[1720785947044,6.2766,136.03,135.99,7.3534]
[1720785947852,6.2766,136.03,136.0,7.3529]
[1720785948058,6.2766,136.03,135.94,35.6817]
[1720785948233,6.2766,136.03,136.0,7.3527]
[1720785948843,6.2766,136.03,135.99,7.3533]
[1720785949044,13.628,136.03,135.98,7.3537]
[1720785949950,6.2766,136.03,135.99,7.3532]
[1720785950359,7.3532,136.0,135.95,7.3551]
[1720785950535,15.8636,136.01,135.9,6.2855]
[1720785950858,23.2162,136.01,135.96,7.3547]
[1720785952055,72.3531,136.0,135.95,7.3555]
[1720785952248,72.3531,136.0,135.9,6.2855]
[1720785952441,27.3531,136.0,135.95,7.3554]
[1720785953143,20.0,136.0,135.9,6.2855]
[1720785953334,20.0,136.0,135.91,20.0]
[1720785953678,20.0,136.0,135.98,7.3536]
[1720785953834,20.0,136.0,135.97,7.3543]
[1720785954171,20.0,136.0,135.92,1.47099463]
[1720785954363,23.2164,136.01,135.93,1.47098999]
[1720785954364,15.8636,136.01,135.93,1.47098999]
[1720785954964,15.8636,136.01,135.97,7.3543]
[1720785955839,23.216,136.01,135.97,7.3543]
[1720785957629,23.216,136.01,135.96,7.3548]
[1720785958136,23.216,136.01,135.97,7.3544]
[1720785958337,15.8636,136.01,135.97,7.3544]
[1720785960457,15.8636,136.01,135.91,49.21]
[1720785960640,15.8636,136.01,135.97,7.3542]
[1720785961537,23.2161,136.01,135.96,7.3548]
[1720785961948,15.8636,136.01,135.97,7.3544]
[1720785962339,23.216,136.01,135.96,7.3548]
[1720785962540,15.8636,136.01,135.98,7.3538]
[1720785962863,15.8636,136.01,136.0,7.3529]
[1720785963437,15.8636,136.01,135.92,45.0]
[1720785963438,16.2896,136.05,136.04,7.3507]
[1720785964043,13.6158,136.1,136.05,7.3501]
[1720785964044,16.2896,136.09,136.05,7.3501]
[1720785964457,23.6379,136.09,136.04,7.3507]
[1720785964672,23.6379,136.09,136.05,7.3501]
[1720785964880,16.2896,136.09,136.05,7.3501]
[1720785965537,7.3487,136.08,136.03,7.3511]
[1720785966341,26.2896,136.09,136.01,7.352]
[1720785966553,16.2896,136.04,136.0,7.3526]
[1720785966861,16.2896,136.04,135.95,29.21]
[1720785967058,16.2896,136.04,136.01,7.3521]
[1720785967241,16.2896,136.04,135.95,29.21]
[1720785967441,16.2896,136.04,136.02,7.3517]
[1720785968257,16.2896,136.04,135.95,29.21]
[1720785968446,16.2896,136.04,136.0,7.3526]
[1720785968933,16.2896,136.04,136.01,7.3522]
[1720785970076,16.2896,136.04,135.95,29.21]
[1720785970284,16.2896,136.04,136.03,7.3513]
[1720785970851,16.2896,136.04,136.02,7.3518]
[1720785971470,16.2896,136.04,136.03,7.3513]
[1720785976874,16.2224,136.07,136.04,7.3505]
[1720785978464,16.2224,136.07,136.03,7.351]
[1720785978773,22.4254,136.06,135.94,6.4477]
[1720785978963,7.351,136.04,135.99,7.3533]
[1720785979151,45.0,136.05,135.99,7.3533]
[1720785979350,27.3509,136.04,136.0,7.3529]
[1720785979655,27.3508,136.04,136.0,7.3529]
[1720785979858,20.0,136.04,136.0,7.3529]
[1720785980473,29.7752,136.06,136.01,7.3522]
[1720785980651,20.0,136.05,136.01,7.3522]
[1720785981464,29.7752,136.06,136.02,7.3518]
[1720785981667,22.4254,136.06,136.03,7.3511]
[1720785981868,16.2224,136.06,135.97,29.21]
[1720785982068,16.2224,136.06,136.04,7.3504]
[1720785982853,16.2224,136.06,136.01,7.3523]
[1720785983053,16.2224,136.06,135.95,29.21]
[1720785983287,7.3505,136.05,136.0,7.3525]
[1720785983985,7.351,136.04,135.99,7.3533]
[1720785985189,26.2224,136.06,135.98,7.3538]
[1720785985389,26.2224,136.06,135.99,7.353]
[1720785985390,7.3511,136.04,135.99,7.353]
[1720785985557,7.3511,136.04,136.0,7.3527]
[1720785985760,6.3744,136.05,136.01,7.352]
[1720785986074,6.3744,136.05,136.03,7.3509]
[1720785986281,6.3744,136.05,136.04,7.3507]
[1720785986484,16.2224,136.06,135.97,29.21]
[1720785986785,16.2224,136.06,136.03,7.3512]
[1720785988006,16.2224,136.06,136.04,7.3507]
[1720785988180,16.2224,136.06,136.05,7.3502]
[1720785988788,16.2224,136.06,136.03,7.3508]
[1720785989291,16.2224,136.06,135.99,29.21]
[1720785989590,16.2224,136.06,136.03,7.3511]
[1720785989796,16.2224,136.06,136.02,7.3516]
[1720785990090,23.5722,136.06,135.97,29.21]
[1720785990264,7.3504,136.05,135.95,29.21]
[1720785990666,23.5723,136.06,136.01,7.3523]
[1720785991803,16.2224,136.06,136.02,7.3517]
[1720785991977,23.5722,136.06,136.01,7.3521]
[1720785992180,7.3503,136.05,136.01,7.3521]
[1720785992893,23.5723,136.06,136.01,7.3521]
[1720785993083,16.2224,136.06,135.95,29.21]
[1720785993397,16.2224,136.06,136.04,7.3505]
[1720785994080,16.2224,136.06,136.02,7.3516]
[1720785994391,16.2224,136.06,136.03,7.3511]
[1720785996088,16.2224,136.06,136.04,7.3504]
[1720785996290,16.2224,136.06,135.97,29.21]
[1720785996475,16.2224,136.06,136.04,7.3504]
[1720785996676,16.2224,136.06,136.05,7.3502]
[1720785997275,16.2224,136.06,136.04,7.3505]
[1720785998892,16.2224,136.06,135.98,65.0]
[1720785999197,16.2224,136.06,135.98,20.0]
[1720785999392,16.2224,136.06,136.02,7.3515]
[1720785999974,16.2224,136.06,136.02,7.3516]
[1720786001796,16.2224,136.06,136.03,7.3512]
[1720786003187,16.2224,136.06,136.04,7.3507]
[1720786005788,16.2224,136.06,136.03,7.351]
[1720786007285,16.2224,136.06,135.97,29.21]
[1720786007596,16.2224,136.06,136.05,7.3502]
[1720786009204,15.2028,136.08,136.07,7.3489]
[1720786010806,15.2028,136.08,136.06,7.3494]
[1720786011796,15.2028,136.08,136.07,7.3491]
[1720786014702,15.2028,136.08,135.98,65.0]
[1720786014703,6.6589,136.07,135.95,6.2632]
[1720786014886,6.6589,136.07,135.96,30.18065046]
[1720786015085,45.0,136.06,135.96,0.97065046]
[1720786015306,45.0,136.06,135.97,1.46349042]
[1720786015514,52.35,136.06,135.97,1.46349042]
[1720786015805,6.6589,136.07,135.97,1.46349042]
[1720786016108,6.6589,136.07,135.95,35.4732]
[1720786016609,14.0081,136.07,135.96,46.47047688]
[1720786017507,14.0081,136.07,135.97,20.0]
[1720786017688,14.0081,136.07,135.98,1.47026094]
[1720786017891,6.6589,136.07,135.99,1.47015317]
[1720786018904,6.6589,136.07,135.98,1.47015317]
[1720786019108,6.6589,136.07,135.99,1.47004543]
[1720786020197,6.6589,136.07,136.0,1.46993733]
[1720786020397,6.6589,136.07,135.98,1.46993733]
[1720786021008,6.6589,136.07,135.98,45.0]
[1720786021505,6.6589,136.07,135.99,20.0]
[1720786021909,6.6589,136.07,136.0,1.47018985]
[1720786023098,15.2028,136.08,136.01,1.47025013]
[1720786023394,15.2028,136.08,136.0,20.0]
[1720786024309,22.5514,136.08,136.0,20.0]
[1720786024507,22.5514,136.08,135.98,20.0]
[1720786024805,15.2028,136.08,135.99,1.47034279]
[1720786025011,15.2028,136.08,136.0,1.47026542]
[1720786026010,22.5515,136.08,135.98,20.0]
[1720786026414,15.2028,136.08,135.98,20.0]
[1720786026614,14.56,136.06,136.01,14.56]
[1720786027587,14.56,136.07,136.02,14.56]
[1720786028615,29.7628,136.08,136.02,14.56]
[1720786029495,15.2028,136.08,136.02,14.56]
[1720786029699,15.2028,136.08,136.03,14.56]
[1720786029700,29.7628,136.08,136.03,14.56]
[1720786029901,29.7628,136.08,136.02,14.56]
[1720786029902,14.56,136.07,136.02,14.56]
[1720786030515,29.7628,136.08,136.03,14.56]
[1720786031039,15.2028,136.08,136.03,14.56]
[1720786031331,15.2028,136.08,136.04,14.56]
[1720786036008,29.7628,136.08,136.03,14.56]
[1720786036209,14.56,136.07,136.02,14.56]
[1720786036926,15.2028,136.08,135.95,6.2632]
[1720786036927,14.56,136.06,135.95,6.2632]
[1720786037126,10.0,136.05,135.94,7.3629]
[1720786037353,30.6327,136.01,135.96,14.56]
[1720786038312,7.3538,135.99,135.89,10.6008449]
[1720786038516,7.3538,135.99,135.88,6.2231]
[1720786038517,14.56,135.97,135.92,14.56]
[1720786040513,7.3536,135.99,135.88,6.2231]
[1720786040726,7.3536,135.99,135.89,20.0]
[1720786041044,7.3536,135.99,135.88,6.2231]
[1720786041327,7.3548,135.97,135.87,29.16]
[1720786041527,7.3548,135.97,135.85,6.3541]
[1720786041528,7.3548,135.97,135.85,35.5141]
[1720786041831,30.0,135.96,135.85,35.5141]
[1720786042842,30.0,135.96,135.86,20.0]
[1720786045363,30.0,135.96,135.87,45.0]
[1720786045534,23.0099,135.98,135.88,20.0]
[1720786045740,20.0,135.97,135.88,20.0]
[1720786046755,7.3555,135.96,135.88,20.0]
[1720786047056,20.0,135.97,135.86,20.0]
[1720786047353,7.356,135.95,135.86,20.0]
[1720786047650,28.8528,135.96,135.87,1.47173366]
[1720786047851,20.0,135.95,135.87,1.47173366]
[1720786048036,21.4976,135.96,135.87,1.47173366]
[1720786048644,21.4976,135.96,135.87,46.47173366]
[1720786048850,21.4976,135.96,135.88,20.0]
[1720786049152,21.4976,135.96,135.89,1.47134417]
[1720786049332,21.4976,135.96,135.9,1.4712359]
[1720786050336,21.4976,135.96,135.89,1.4712359]
[1720786050537,21.4976,135.96,135.9,1.47112764]
[1720786051439,21.4976,135.96,135.89,1.4711278]
[1720786051829,28.8527,135.96,135.89,1.4711278]
[1720786052744,21.4976,135.96,135.89,1.4711278]
[1720786053454,15.3041,135.96,135.89,1.4711278]
[1720786053960,15.3041,135.96,135.9,1.47101954]
[1720786054953,22.3684,135.99,135.9,1.47101954]
[1720786055253,22.3684,135.99,135.9,20.0]
[1720786057555,7.3547,135.97,135.89,20.0]
[1720786057755,7.3542,135.98,135.89,20.0]
[1720786058256,7.3542,135.98,135.9,0.77993044]
[1720786058552,7.3542,135.98,135.89,20.0]
[1720786058761,7.3542,135.98,135.9,1.33950574]
[1720786059062,7.3542,135.98,135.89,20.0]
[1720786060559,14.58,135.97,135.92,14.58]
[1720786061147,22.3684,135.99,135.94,14.58]
[1720786061342,15.964,135.99,135.95,14.58]
[1720786062637,30.544,135.99,135.94,14.58]
[1720786062841,37.8975,135.99,135.94,14.58]
[1720786063054,14.58,135.98,135.93,14.58]
[1720786063256,30.544,135.99,135.94,14.58]
[1720786064457,14.58,135.98,135.93,14.58]
[1720786064959,15.964,135.99,135.95,14.58]
[1720786066640,22.8015,136.02,135.97,14.58]
[1720786066847,37.3815,136.02,135.97,14.58]
[1720786067763,44.7334,136.02,135.97,14.58]
[1720786069458,37.3815,136.02,135.97,14.58]
[1720786070765,22.8015,136.02,135.94,14.58]
[1720786071068,16.2992,136.02,135.98,14.58]
[1720786072251,23.6512,136.02,135.98,14.58]
[1720786072645,38.2312,136.02,135.97,14.58]
[1720786072868,21.9325,136.01,135.96,14.58]
[1720786074369,14.58,136.01,135.93,6.2996]
[1720786074552,21.9331,136.0,135.89,33.3652]
[1720786074751,21.9331,136.0,135.95,14.58]
[1720786074947,14.58,136.0,135.95,14.58]
[1720786075374,14.58,136.0,135.94,14.58]
[1720786075667,14.58,135.99,135.94,14.58]
[1720786076049,14.58,136.0,135.95,14.58]
[1720786076450,14.58,136.01,135.96,14.58]
[1720786076651,30.8792,136.02,135.96,14.58]
[1720786076864,16.2992,136.02,135.98,14.58]
[1720786077457,16.2992,136.02,135.99,14.58]
[1720786077664,16.2992,136.02,135.98,14.58]
[1720786079755,16.2992,136.02,135.99,14.58]
[1720786080465,16.2992,136.02,136.01,14.58]
[1720786080777,16.2992,136.02,135.99,14.58]
[1720786081156,16.2992,136.02,136.0,14.58]
[1720786082063,16.2992,136.02,135.99,14.58]
[1720786082272,16.2992,136.02,135.94,71.8222]
[1720786082458,16.2992,136.02,135.98,14.58]
[1720786082655,16.2992,136.02,135.99,14.58]
[1720786082862,6.407,136.05,136.0,14.58]
[1720786083162,20.987,136.05,136.0,14.58]
[1720786087367,6.407,136.05,136.0,14.58]
[1720786087671,6.407,136.05,136.01,14.58]
[1720786088360,6.407,136.05,136.02,14.58]
[1720786088555,15.1178,136.06,136.02,14.58]
[1720786088763,15.1178,136.06,135.95,65.0]
[1720786088764,15.1178,136.06,136.04,14.58]
[1720786091775,15.1178,136.06,136.03,14.58]
[1720786095888,15.1178,136.06,136.02,14.58]
[1720786097072,29.6978,136.06,135.95,20.0]